bitfinex/quotes_ETHUSD_20250904
["timestamp","ask_amount","ask_price","bid_price","bid_amount"]
[1757010334214,1.716,4293.6,4291.8,0.025]
[1757010334418,2.32866823,4294.3,4291.8,0.025]
[1757010334777,2.32883092,4294.0,4291.9,0.9341]
[1757010334989,3.0,4293.8,4292.0,0.4543]
[1757010335164,2.6716,4293.9,4291.8,0.025]
[1757010335165,0.2924,4292.1,4291.8,0.025]
[1757010335497,2.3299704,4291.9,4291.8,0.025]
[1757010335642,1.716,4291.9,4291.8,0.025]
[1757010335981,1.716,4291.9,4291.8,0.3227]
[1757010336158,5.78,4291.9,4291.8,0.3227]
[1757010336482,1.716,4291.9,4291.8,1.38248]
[1757010336667,5.78,4291.9,4291.8,3.71250469]
[1757010337769,5.78,4291.9,4291.8,3.82930469]
[1757010337940,5.78,4291.9,4291.8,1.3736]
[1757010338143,1.716,4291.9,4291.8,3.70362469]
[1757010338466,5.778,4291.9,4291.8,3.70362469]
[1757010338638,5.778,4291.9,4291.8,6.70362469]
[1757010338639,1.716,4291.9,4291.8,6.70362469]
[1757010338843,3.861,4292.8,4291.9,3.0]
[1757010339048,3.861,4292.7,4292.6,2.32959045]
[1757010339371,1.716,4293.4,4292.7,0.311]
[1757010339572,1.716,4293.4,4292.8,1.04827]
[1757010339573,4.07,4293.3,4292.8,1.04827]
[1757010339788,1.716,4293.4,4293.3,2.32921063]
[1757010339989,1.716,4293.4,4292.5,2.32964217]
[1757010339990,5.785,4293.4,4292.8,0.4515]
[1757010340191,5.785,4293.4,4291.8,6.25839208]
[1757010340366,2.32926824,4293.2,4292.3,0.70043135]
[1757010340569,4.077,4293.1,4292.4,0.4515]
[1757010340790,4.077,4293.0,4292.4,0.4515]
[1757010340954,1.716,4293.4,4292.9,0.311]
[1757010341159,3.995,4293.3,4293.0,0.9247]
[1757010341360,1.716,4293.4,4292.9,0.311]
[1757010341361,1.716,4293.4,4293.2,2.64026473]
[1757010341561,1.716,4293.4,4293.3,0.9247]
[1757010341762,1.716,4293.4,4293.3,3.6104071]
[1757010341763,5.793,4293.4,4293.3,3.6104071]
[1757010341958,5.793,4293.4,4293.3,3.9214071]
[1757010342566,5.793,4293.4,4293.3,6.9214071]
[1757010342776,1.716,4294.1,4293.7,2.32899364]
[1757010342996,4.102,4293.8,4293.7,2.79480026]
[1757010343214,0.025,4293.8,4293.7,4.03050026]
[1757010343420,0.025,4294.8,4293.7,4.03050026]
[1757010343421,0.025,4294.8,4294.7,2.32845134]
[1757010343899,0.025,4294.8,4294.7,2.63945134]
[1757010344192,0.025,4294.8,4294.7,3.56415134]
[1757010344398,0.025,4294.8,4294.3,0.4515]
[1757010344693,0.025,4294.8,4293.7,0.46580662]
[1757010344694,4.078,4294.7,4294.4,2.32860743]
[1757010344869,4.078,4294.7,4294.3,2.3286519]
[1757010345074,4.078,4294.7,4293.9,2.32885967]
[1757010345075,4.078,4294.7,4294.4,0.4515]
[1757010345274,4.078,4294.7,4294.2,2.32871441]
[1757010345471,4.078,4294.7,4294.2,0.4515]
[1757010345677,4.078,4294.7,4294.2,2.78021171]
[1757010346103,4.078,4294.7,4294.2,0.4515]
[1757010346595,4.078,4294.7,4293.9,0.7001747]
[1757010346798,4.078,4294.7,4293.6,0.4515]
[1757010346799,4.9415,4294.7,4293.6,0.4515]
[1757010347093,4.9415,4294.7,4293.9,2.32884452]
[1757010347094,6.81675345,4294.7,4293.9,2.32884452]
[1757010347299,2.32852138,4294.6,4293.6,0.4515]
[1757010347468,1.716,4294.5,4293.6,0.4515]
[1757010347792,1.716,4294.5,4293.7,2.32894158]
[1757010348092,1.716,4294.5,4293.1,2.32926932]
[1757010348093,2.32887705,4294.0,4293.1,2.32926932]
[1757010348272,4.092,4293.9,4293.0,0.70036921]
[1757010348479,2.32893947,4293.8,4293.0,3.02973926]
[1757010348683,1.716,4293.7,4293.2,2.32923733]
[1757010348884,4.092,4293.6,4293.4,2.32915559]
[1757010349084,4.092,4293.6,4293.5,0.311]
[1757010349474,4.092,4293.6,4293.2,2.32925459]
[1757010349696,4.092,4293.6,4293.3,2.3291661]
[1757010349912,4.092,4293.6,4293.5,2.64010213]
[1757010350217,4.092,4293.6,4293.5,0.311]
[1757010350375,4.092,4293.6,4293.5,2.64009318]
[1757010350570,1.8328,4293.7,4293.5,0.311]
[1757010350774,4.089,4293.6,4293.1,2.44611285]
[1757010351000,4.089,4293.6,4293.4,2.32915138]
[1757010351190,4.089,4293.6,4293.5,2.32910213]
[1757010351366,4.089,4293.6,4293.1,0.1168]
[1757010351570,1.716,4293.7,4293.6,2.32904788]
[1757010351785,1.716,4293.7,4293.6,3.68154788]
[1757010352168,1.716,4293.7,4293.6,3.20834788]
[1757010353106,1.716,4293.7,4293.6,2.75684788]
[1757010354101,1.716,4293.7,4293.6,3.20834788]
[1757010354290,1.716,4293.7,4293.6,4.35264209]
[1757010354495,3.654,4294.1,4293.7,3.0]
[1757010354705,4.083,4294.3,4294.2,2.32872246]
[1757010354906,1.716,4294.5,4294.4,2.328614]
[1757010355208,0.001,4294.7,4294.5,2.32855978]
[1757010355436,0.001,4294.7,4294.6,2.80173154]
[1757010355582,0.001,4294.7,4294.6,4.03743154]
[1757010355777,0.001,4294.7,4293.8,2.78043228]
[1757010356010,4.083,4294.6,4294.5,2.32851199]
[1757010356185,4.083,4294.6,4294.5,2.63951199]
[1757010356711,0.001,4294.7,4294.6,2.32850556]
[1757010356899,4.087,4294.7,4294.6,2.32850556]
[1757010357209,4.087,4294.7,4294.6,2.63950556]
[1757010357721,4.087,4294.7,4294.6,2.32850556]
[1757010358018,4.086,4294.7,4294.6,2.63950556]
[1757010358523,0.001,4294.7,4294.6,7.85301635]
[1757010358691,0.001,4294.7,4294.6,8.55297376]
[1757010358894,0.001,4294.7,4294.6,7.76097376]
[1757010360937,1.716,4296.0,4295.7,2.3279093]
[1757010361136,1.716,4296.0,4295.7,2.79349852]
[1757010361439,1.716,4296.0,4295.7,3.55599852]
[1757010361803,0.18268999,4296.8,4295.7,7.02919852]
[1757010362002,1e-08,4295.8,4295.7,7.02919852]
[1757010362237,1e-08,4295.8,4295.7,7.82119852]
[1757010362738,1e-08,4295.8,4295.7,19.79791526]
[1757010364910,1e-08,4295.8,4295.7,6.10449852]
[1757010365245,0.28710001,4295.8,4295.7,2.3279093]
[1757010365444,0.78330001,4295.8,4295.7,2.3279093]
[1757010365616,1.23650001,4295.8,4294.6,0.49681079]
[1757010365819,1.716,4295.7,4295.4,2.32805912]
[1757010366052,0.2871,4295.5,4295.4,2.32807189]
[1757010366323,2.676,4295.6,4295.5,2.32801769]
[1757010366649,3.9125,4295.6,4295.4,2.32806984]
[1757010366853,0.9494,4295.5,4295.4,2.32806984]
[1757010367006,0.9494,4295.5,4295.3,2.32812563]
[1757010367210,2.9631,4295.6,4295.3,2.32812563]
[1757010367211,0.4962,4295.4,4295.3,2.32812609]
[1757010367451,2.676,4295.6,4295.5,2.32801769]
[1757010367657,2.9631,4295.6,4295.5,2.32801769]
[1757010367858,3.9125,4295.6,4295.3,2.32807738]
[1757010368011,0.9494,4295.5,4295.4,2.32805658]
[1757010368413,2.676,4295.6,4295.5,2.32801769]
[1757010368739,5.792,4295.7,4295.6,2.32796349]
[1757010368911,5.792,4295.7,4295.2,0.1168]
[1757010368912,6.0961,4295.7,4295.2,0.1168]
[1757010369114,0.9185,4295.6,4295.2,2.44492854]
[1757010369312,0.9185,4295.6,4295.4,2.32802184]
[1757010369511,0.3041,4295.5,4295.4,2.32802184]
[1757010369712,1.2226,4295.5,4294.4,3.0]
[1757010369918,0.1168,4295.4,4294.8,0.1168]
[1757010370117,0.3041,4294.9,4294.8,2.44519713]
[1757010370356,5.2966,4294.9,4294.8,2.44519713]
[1757010370563,5.2966,4294.9,4294.8,2.32839713]
[1757010370767,7.0126,4294.9,4294.6,2.32849642]
[1757010370933,0.9185,4294.8,4294.6,2.32849642]
[1757010371255,6.0941,4294.9,4294.5,0.1168]
[1757010371256,5.79,4294.9,4294.5,0.1168]
[1757010371465,0.4209,4294.6,4294.4,2.32860363]
[1757010371612,0.4209,4294.6,4294.3,2.32865415]
[1757010371815,0.9185,4294.5,4294.2,2.32872121]
[1757010372032,0.3041,4294.3,4294.1,2.32876318]
[1757010372242,0.3041,4294.3,4294.2,2.32872246]
[1757010372608,1.2226,4294.3,4294.2,2.32872246]
[1757010373931,4.3791,4294.3,4294.2,2.32872246]
[1757010374426,4.8203,4294.3,4293.8,2.47068728]
[1757010374620,0.9185,4294.2,4293.9,2.32883113]
[1757010374848,0.3041,4294.0,4293.9,2.32883113]
[1757010375028,0.4412,4294.2,4294.1,2.32877669]
[1757010375224,0.4412,4294.2,4294.0,2.3288237]
[1757010375440,4.1918,4294.3,4294.1,2.32877224]
[1757010375813,4.1918,4294.3,4294.2,2.32872246]
[1757010376342,4.4959,4294.3,4294.2,2.32872246]
[1757010376543,5.4144,4294.3,4293.8,2.47071589]
[1757010376751,0.9185,4294.2,4293.8,2.47071589]
[1757010377053,0.9185,4294.1,4294.0,2.32880659]
[1757010377215,1.2226,4294.1,4293.8,0.1418]
[1757010377745,1.2226,4294.1,4293.9,2.32886808]
[1757010377912,1.2226,4294.1,4294.0,2.32883092]
[1757010378117,0.7814,4294.1,4294.0,2.32883092]
[1757010378356,0.3041,4294.1,4294.0,2.32883092]
[1757010378557,0.3041,4294.1,4293.9,2.32884767]
[1757010379048,0.3041,4294.1,4293.9,2.32887301]
[1757010379347,0.3041,4294.1,4293.9,2.32887263]
[1757010379348,1.2226,4294.1,4293.9,2.32887263]
[1757010379551,0.3041,4294.1,4294.0,2.32883092]
[1757010379729,4.066,4294.1,4294.0,3.5222879]
[1757010379932,0.1168,4294.6,4294.5,2.32855978]
[1757010380155,0.1168,4294.6,4293.8,0.025]
[1757010380156,4.4839,4294.6,4293.8,0.025]
[1757010380463,5.4024,4294.6,4294.3,2.32865839]
[1757010380623,4.4839,4294.6,4294.3,2.32865839]
[1757010380818,0.9185,4294.5,4294.3,2.32865839]
[1757010381018,0.4773,4294.5,4294.3,2.32865839]
[1757010381326,0.3041,4294.4,4294.3,2.32865839]
[1757010383054,4.1798,4294.6,4294.5,2.32855978]
[1757010383251,1.716,4294.9,4294.7,2.32843568]
[1757010383458,4.059,4294.6,4294.5,2.32855978]
[1757010383634,1.8328,4294.9,4294.4,2.32859675]
[1757010383954,4.058,4294.8,4294.7,2.32845134]
[1757010384124,4.058,4294.8,4294.1,0.5446]
[1757010384328,4.058,4294.8,4294.3,2.32866815]
[1757010384555,4.058,4294.8,4294.4,2.32857708]
[1757010384881,4.058,4294.8,4294.5,2.32854812]
[1757010385054,4.058,4294.8,4294.1,0.48133525]
[1757010385365,4.058,4294.8,4294.7,2.32845134]
[1757010385664,1.716,4294.9,4294.8,2.32839713]
[1757010385851,4.056,4295.0,4294.9,2.32834291]
[1757010386061,4.056,4295.0,4294.9,3.50684291]
[1757010386356,1.716,4295.7,4295.6,2.32796349]
[1757010386532,6.9946,4295.7,4295.4,2.32805959]
[1757010387435,6.9946,4295.7,4295.5,2.32800266]
[1757010388029,1.716,4295.7,4295.1,0.1168]
[1757010388254,1.716,4295.7,4295.6,2.61366349]
[1757010388577,5.77,4295.7,4295.6,2.61366349]
[1757010388856,5.77,4295.7,4295.6,3.04146349]
[1757010389227,1e-08,4295.8,4295.7,2.3279093]
[1757010389459,1e-08,4295.8,4295.7,2.7557093]
[1757010389656,1e-08,4295.8,4295.7,3.0414093]
[1757010390138,1e-08,4295.8,4295.7,6.5064093]
[1757010393163,5.05060001,4295.8,4294.7,2.5612929]
[1757010393461,5.05060001,4295.8,4294.4,2.328614]
[1757010393462,0.9185,4295.7,4294.4,2.328614]
[1757010393662,2.6345,4295.6,4294.1,2.32877669]
[1757010393968,0.9185,4295.5,4294.8,2.32838257]
[1757010394264,0.3041,4294.9,4294.8,2.32838257]
[1757010394469,4.3581,4294.9,4294.8,2.32838257]
[1757010394875,5.2766,4294.9,4294.8,2.32838257]
[1757010396464,4.3581,4294.9,4294.8,2.32838257]
[1757010396874,4.8354,4294.9,4294.8,2.32838257]
[1757010397074,4.3581,4294.9,4294.8,2.32838257]
[1757010397286,4.05,4294.9,4294.8,0.2857]
[1757010397453,4.05,4294.9,4294.8,2.61409713]
[1757010397773,1.716,4295.6,4295.5,2.32801769]
[1757010397939,5.765,4295.6,4295.5,2.32801769]
[1757010398141,5.766,4295.6,4295.5,2.32801769]
[1757010398635,5.765,4295.6,4295.5,2.32801769]
[1757010399885,5.765,4295.6,4295.5,2.63051769]
[1757010400166,5.765,4295.6,4295.5,2.32801769]
[1757010400564,5.765,4295.6,4295.5,2.63051769]
[1757010401146,7.0122,4295.6,4295.3,2.32810503]
[1757010401346,1.5163,4295.5,4295.3,2.32810503]
[1757010401548,0.3074,4295.4,4295.3,2.32810503]
[1757010402087,1.2472,4295.4,4295.3,2.32810503]
[1757010402283,1.2472,4295.4,4294.4,3.0]
[1757010402484,0.9398,4295.3,4294.0,2.32882109]
[1757010402673,4.046,4295.2,4294.7,2.32843293]
[1757010402842,0.3074,4294.8,4294.7,2.32845134]
[1757010403045,6.0694,4294.8,4294.7,2.32845134]
[1757010404475,7.0092,4294.8,4294.3,0.1168]
[1757010404771,0.9398,4294.7,4294.4,2.328614]
[1757010404982,0.4873,4294.6,4294.5,2.32855259]
[1757010405271,0.3074,4294.6,4294.5,2.32855259]
[1757010405445,5.762,4294.8,4294.7,2.32845134]
[1757010405446,1.716,4294.8,4294.7,2.32845134]
[1757010405645,5.759,4294.8,4294.7,2.32845134]
[1757010406650,1.716,4294.8,4294.7,2.63095134]
[1757010406852,5.758,4294.8,4294.7,3.28705173]
[1757010407146,5.758,4294.8,4294.7,3.72055173]
[1757010408284,1.716,4294.8,4294.7,3.72055173]
[1757010408450,5.757,4294.8,4294.7,4.21225173]
[1757010408645,1.716,4295.5,4295.4,2.32807189]
[1757010409049,1.716,4295.5,4295.4,3.18087189]
[1757010409262,1.716,4295.5,4295.4,3.73177352]
[1757010409461,1.716,4295.5,4295.4,3.29827352]
[1757010411277,1.716,4295.5,4295.4,2.99577352]
[1757010411648,1.716,4295.5,4294.6,0.4917]
[1757010411649,2.9632,4295.5,4294.1,3.9252]
[1757010411947,2.9632,4295.5,4295.3,2.32808733]
[1757010412163,0.4873,4295.4,4295.3,2.32808733]
[1757010412566,1.2472,4295.4,4295.2,2.32817015]
[1757010412767,4.9788,4295.3,4295.2,2.32817015]
[1757010412965,5.2862,4295.3,4294.1,3.9252]
[1757010413277,4.8337,4295.3,4294.4,2.328614]
[1757010413580,4.3464,4295.3,4295.1,2.3282267]
[1757010413748,0.4873,4295.2,4295.0,2.3282741]
[1757010413950,4.039,4295.3,4294.5,2.32855978]
[1757010414194,4.039,4295.3,4295.2,2.32818029]
[1757010414645,1.716,4295.5,4295.3,2.32811604]
[1757010414845,1.716,4295.5,4294.7,0.4335]
[1757010414846,5.2822,4295.4,4294.5,3.0]
[1757010415076,5.2822,4295.4,4295.2,2.32817207]
[1757010415278,0.9398,4295.3,4295.0,2.32824611]
[1757010415479,0.3074,4295.1,4294.8,2.32839218]
[1757010415779,4.036,4295.0,4294.9,2.32834291]
[1757010416076,1.716,4295.5,4295.4,2.32807189]
[1757010416284,6.0584,4295.5,4295.4,2.32807189]
[1757010416448,5.751,4295.5,4295.4,2.32807189]
[1757010416645,5.75,4295.5,4295.4,2.32807189]
[1757010416848,5.75,4295.5,4295.4,2.63057189]
[1757010417680,5.75,4295.5,4295.4,2.32807189]
[1757010417858,5.75,4295.5,4295.4,2.02807189]
[1757010418244,1.716,4295.5,4295.4,2.02807189]
[1757010418450,1e-08,4295.8,4295.7,2.3279093]
[1757010418896,1e-08,4295.8,4295.7,2.6304093]
[1757010420162,1e-08,4295.8,4295.7,3.0639093]
[1757010420374,1e-08,4295.8,4295.7,3.5556093]
[1757010420575,0.00100001,4295.8,4295.7,3.5556093]
[1757010420774,0.00100001,4295.8,4295.7,8.82351727]
[1757010421572,0.00100001,4295.8,4295.7,8.93951727]
[1757010421774,0.00100001,4295.8,4295.7,9.63937998]
[1757010424166,0.00100001,4295.8,4295.7,13.66637998]
[1757010424678,0.00100001,4295.8,4295.7,12.74117998]
[1757010424981,0.00100001,4295.8,4295.7,13.17467998]
[1757010425279,0.00100001,4295.8,4295.3,0.4917]
[1757010425280,1.24820001,4295.8,4294.7,2.32845134]
[1757010425485,1.24820001,4295.8,4295.7,2.3279093]
[1757010426058,1.24820001,4295.8,4295.4,0.69999172]
[1757010426059,0.79570001,4295.8,4295.4,0.69999172]
[1757010426366,0.9398,4295.7,4295.2,2.32813223]
[1757010426573,0.3074,4295.3,4295.2,2.32813223]
[1757010426886,5.2732,4295.3,4295.2,2.32813223]
[1757010428078,5.2732,4295.3,4295.1,2.32823175]
[1757010428380,0.9398,4295.2,4295.1,2.32823175]
[1757010428724,4.3334,4295.3,4295.2,2.32818029]
[1757010428986,6.0282,4295.3,4295.2,2.32818029]
[1757010429398,5.739,4295.3,4295.2,3.38343266]
[1757010429700,0.00100001,4295.8,4295.7,2.3279093]
[1757010430516,0.00100001,4295.8,4295.7,2.6170093]
[1757010431321,0.00100001,4295.8,4295.7,2.3279093]
[1757010431480,0.00100001,4295.8,4295.7,2.6170093]
[1757010431682,0.00100001,4295.8,4295.7,3.31694875]
[1757010432977,0.00100001,4295.8,4295.7,3.02784875]
[1757010433182,0.28720001,4295.8,4295.7,3.02784875]
[1757010433628,0.00100001,4295.8,4295.7,3.02784875]
[1757010433781,4.02700001,4295.8,4295.7,3.31694875]
[1757010434121,0.00100001,4295.8,4295.7,7.51989936]
[1757010434291,0.00100001,4295.8,4295.7,8.31189936]
[1757010435489,0.00100001,4295.8,4295.7,12.45389936]
[1757010439597,0.00100001,4295.8,4295.7,11.51749936]
[1757010439783,0.00100001,4295.8,4295.7,6.41539936]
[1757010439996,0.00100001,4295.8,4295.7,6.43294875]
[1757010441507,0.00100001,4295.8,4295.7,10.90464875]
[1757010441816,0.00100001,4295.8,4295.7,12.17534875]
[1757010442518,0.00100001,4295.8,4295.7,11.69664875]
[1757010442895,0.00100001,4295.8,4295.7,12.17534875]
[1757010443220,0.00100001,4295.8,4295.7,13.62568194]
[1757010443535,0.00100001,4295.8,4295.7,13.17298194]
[1757010443686,0.73860001,4295.8,4295.7,6.14384875]
[1757010443887,1.21860001,4295.8,4295.7,6.14384875]
[1757010445140,0.00100001,4295.8,4295.7,6.14384875]
[1757010447903,0.28720001,4295.8,4295.7,6.14384875]
[1757010448495,0.481,4296.3,4295.7,6.14384875]
[1757010448496,0.001,4296.3,4296.2,2.32763837]
[1757010448824,0.001,4296.3,4296.2,19.77138943]
[1757010449029,0.001,4296.3,4296.2,19.29268943]
[1757010449333,0.9564,4296.3,4296.2,2.32763837]
[1757010449534,0.5092,4296.3,4296.2,2.32763837]
[1757010450423,0.9564,4296.3,4296.2,2.32763837]
[1757010450609,0.0292,4296.3,4296.2,2.32763837]
[1757010452308,0.0292,4296.3,4296.2,2.80763837]
[1757010452733,0.001,4296.3,4296.2,2.80763837]
[1757010453526,0.0333,4296.3,4296.2,2.80763837]
[1757010454127,0.001,4296.3,4296.2,2.80763837]
[1757010454627,0.0292,4296.3,4296.2,5.23763837]
[1757010455531,0.5092,4296.3,4296.2,5.23763837]
[1757010456017,0.0292,4296.3,4296.2,5.23763837]
[1757010456331,0.001,4296.3,4296.2,6.28327325]
[1757010456900,0.001,4296.3,4296.2,6.73597325]
[1757010457231,0.001,4296.3,4296.2,11.00667325]
[1757010457430,0.001,4296.3,4296.2,10.52797325]
[1757010458650,0.001,4296.3,4296.2,11.12267325]
[1757010458926,1e-08,4296.8,4296.7,2.32736751]
[1757010459103,1e-08,4296.8,4296.7,9.57210426]
[1757010459314,1e-08,4296.8,4296.7,11.59670426]
[1757010459840,1e-08,4296.8,4296.7,11.23250426]
[1757010460546,0.00100001,4296.8,4296.7,11.23250426]
[1757010460845,0.00100001,4296.8,4296.7,11.40827989]
[1757010461208,0.00100001,4296.8,4296.7,11.88847989]
[1757010461402,0.00100001,4296.8,4296.7,14.31847989]
[1757010461644,1e-08,4297.2,4297.1,3.11915086]
[1757010461803,1e-08,4297.2,4297.1,10.76333745]
[1757010462003,1e-08,4297.2,4297.1,12.08866595]
[1757010462203,1e-08,4297.2,4297.1,12.56666595]
[1757010462603,1e-08,4297.2,4297.1,12.68388742]
[1757010463933,1e-08,4297.2,4297.1,7.01326595]
[1757010464101,1e-08,4297.2,4297.1,11.02126595]
[1757010464298,1e-08,4297.2,4297.1,10.54106595]
[1757010464803,1e-08,4297.2,4297.1,12.97106595]
[1757010465502,1e-08,4297.2,4297.1,13.28676595]
[1757010465720,1e-08,4297.2,4297.1,12.97106595]
[1757010465916,1e-08,4297.2,4297.1,8.96306595]
[1757010466117,0.04980001,4297.2,4297.1,8.96306595]
[1757010466925,0.52780001,4297.2,4297.1,8.96306595]
[1757010467706,1e-08,4297.2,4297.1,8.96306595]
[1757010468418,1e-08,4297.2,4297.1,9.71546595]
[1757010468735,1e-08,4297.2,4297.1,10.07076595]
[1757010468908,1e-08,4297.2,4297.1,10.50746595]
[1757010469939,1e-08,4297.2,4297.1,10.07076595]
[1757010470321,1e-08,4297.2,4297.1,10.53906595]
[1757010470521,0.04980001,4297.2,4297.1,10.53906595]
[1757010471441,1e-08,4297.2,4297.1,10.53906595]
[1757010471656,1e-08,4297.2,4297.1,12.08346595]
[1757010471855,1e-08,4297.2,4297.1,12.56366595]
[1757010472055,1e-08,4297.2,4297.1,14.99366595]
[1757010473679,1e-08,4297.2,4297.0,11.97648722]
[1757010473680,0.478,4297.2,4295.4,2.0851894]
[1757010473832,0.478,4297.2,4294.8,0.025]
[1757010473833,2.32801769,4295.5,4294.8,0.025]
[1757010474153,6.02448173,4295.4,4294.8,0.025]
[1757010474354,0.3039,4295.0,4294.8,0.025]
[1757010477520,4.3509,4295.0,4294.8,0.025]
[1757010479239,4.3499,4295.0,4294.8,0.029]
[1757010480875,4.4461,4295.0,4294.8,0.029]
[1757010481233,0.3039,4295.0,4294.8,2.35739699]
[1757010481541,4.044,4295.0,4294.9,2.58016261]
[1757010481728,1.715,4295.4,4294.9,0.5675197]
[1757010481927,4.04,4295.3,4295.0,2.32824541]
[1757010482159,0.004,4295.1,4294.9,0.004]
[1757010482541,0.3971,4295.1,4294.9,0.004]
[1757010482732,0.004,4295.1,4294.9,0.004]
[1757010485059,1.715,4295.4,4295.0,2.43]
[1757010485373,4.036,4295.3,4295.0,2.43]
[1757010485676,4.036,4295.2,4295.0,2.43]
[1757010485839,4.036,4295.2,4295.0,4.75828602]
[1757010486045,4.036,4295.2,4295.0,2.43]
[1757010487044,1.715,4295.4,4295.1,2.32823449]
[1757010487241,4.033,4295.3,4295.0,2.43]
[1757010487478,4.033,4295.3,4295.0,5.23843763]
[1757010487631,4.033,4295.3,4295.0,2.43]
[1757010487831,0.004,4295.1,4295.0,2.43]
[1757010488059,0.004,4295.1,4295.0,4.7582887]
[1757010488258,4.033,4295.3,4295.0,4.7582887]
[1757010488431,0.0079,4295.1,4295.0,2.43]
[1757010489531,2.3282887,4295.0,4294.9,0.004]
[1757010489754,3.3972,4295.0,4294.9,0.004]
[1757010490158,5.7254887,4295.0,4294.9,0.004]
[1757010490347,5.3399887,4295.0,4294.9,0.004]
[1757010490547,6.27438938,4295.0,4294.9,0.004]
[1757010490749,12.02939667,4295.0,4294.9,0.004]
[1757010500203,12.14619667,4295.0,4294.9,0.004]
[1757010501401,7.72469667,4295.0,4294.9,0.004]
[1757010501601,11.74869667,4295.0,4294.9,0.004]
[1757010501810,7.72469667,4295.0,4294.9,0.004]
[1757010502009,11.74669667,4295.0,4294.9,0.004]
[1757010503092,3.1168,4295.0,4294.9,0.309]
[1757010503295,4.1378,4295.0,4294.9,1.2078]
[1757010503486,4.1378,4295.0,4294.9,3.53614291]
[1757010503683,4.1378,4295.0,4294.9,1.2078]
[1757010506611,5.364,4295.3,4295.1,2.32818253]
[1757010506612,0.001,4295.3,4295.1,2.32818253]
[1757010506918,4.021,4295.2,4295.1,2.32818253]
[1757010507282,4.021,4295.2,4295.1,3.53198253]
[1757010507813,0.001,4295.3,4295.2,2.32818029]
[1757010507982,4.021,4295.3,4295.2,2.32818029]
[1757010508183,4.021,4295.3,4295.2,3.53198029]
[1757010509425,0.001,4295.3,4295.2,4.1657375]
[1757010509598,4.02,4295.3,4295.2,4.2825375]
[1757010510284,0.001,4295.3,4295.2,4.2825375]
[1757010510589,4.017,4295.3,4295.2,4.2825375]
[1757010511718,4.021,4295.3,4294.9,0.004]
[1757010511903,0.3931,4295.2,4294.9,0.004]
[1757010512103,2.3282887,4295.0,4294.9,0.004]
[1757010512304,2.6415887,4295.0,4294.9,0.004]
[1757010512483,0.3133,4295.0,4294.9,0.004]
[1757010512690,4.03,4295.0,4294.9,0.004]
[1757010513025,0.001,4295.3,4294.9,1.2078]
[1757010513192,0.001,4295.3,4295.0,0.8988]
[1757010513388,0.001,4295.3,4295.2,2.32818029]
[1757010513622,4.03,4295.3,4295.2,2.63318029]
[1757010513795,4.03,4295.3,4295.2,3.53198029]
[1757010514395,0.001,4295.3,4295.2,3.53198029]
[1757010514605,4.03,4295.3,4295.2,3.53198029]
[1757010516521,4.028,4295.3,4295.2,1.2038]
[1757010517102,4.028,4295.3,4295.2,3.53198029]
[1757010519697,4.024,4295.3,4295.2,3.53198029]
[1757010520148,4.021,4295.3,4295.2,3.53198029]
[1757010520522,0.001,4295.3,4295.2,3.53198029]
[1757010520847,0.001,4295.3,4295.2,4.11840703]
[1757010521018,4.021,4295.3,4295.2,4.11840703]
[1757010521841,0.001,4295.3,4295.2,4.23520703]
[1757010522641,0.001,4295.3,4295.2,5.02720703]
[1757010523548,0.001,4295.3,4295.2,8.02720703]
[1757010528753,0.001,4295.3,4295.2,12.03920703]
[1757010529831,0.001,4295.3,4295.2,13.75520703]
[1757010530456,0.001,4295.3,4295.2,9.74320703]
[1757010530940,0.001,4295.3,4295.2,8.95120703]
[1757010531126,0.001,4295.3,4295.2,12.96120703]
[1757010531550,0.001,4295.3,4295.2,13.75320703]
[1757010532672,0.001,4295.3,4295.2,8.02720703]
[1757010532840,0.001,4295.3,4295.2,12.03620703]
[1757010534351,0.001,4295.3,4295.2,11.60850703]
[1757010534552,0.001,4295.3,4295.2,6.82340703]
[1757010534858,0.005,4295.3,4295.2,10.82940703]
[1757010535566,0.001,4295.3,4295.2,11.60480703]
[1757010535750,0.001,4295.3,4295.2,12.03970703]
[1757010536068,0.001,4295.3,4295.2,8.03370703]
[1757010540052,0.001,4295.3,4295.2,7.59880703]
[1757010541567,0.005,4295.3,4295.2,2.44498029]
[1757010542839,0.3981,4295.3,4295.1,0.004]
[1757010543042,0.5149,4295.3,4295.1,0.004]
[1757010543375,0.5149,4295.3,4295.1,2.33223336]
[1757010543576,0.3931,4295.2,4295.1,2.33223336]
[1757010543783,2.117,4295.2,4295.1,2.33223336]
[1757010544480,2.117,4295.2,4295.1,0.004]
[1757010544654,2.117,4295.2,4295.1,2.33223449]
[1757010544858,1.7239,4295.2,4295.1,2.33223449]
[1757010545200,2.1132,4295.2,4295.1,2.33223449]
[1757010546050,5.7249,4295.2,4295.1,2.33223449]
[1757010546495,0.001,4295.3,4295.2,2.32818029]
[1757010546979,0.001,4295.3,4295.2,2.78928029]
[1757010547355,0.001,4295.3,4295.2,3.53848029]
[1757010548167,0.001,4295.3,4295.2,3.10358029]
[1757010549437,0.3982,4295.3,4295.1,0.004]
[1757010549845,4.3992,4295.3,4295.2,2.32818029]
[1757010550052,4.4002,4295.3,4295.2,2.32818029]
[1757010550588,4.4002,4295.3,4295.1,0.004]
[1757010550885,0.3855,4295.2,4295.1,2.33223449]
[1757010551252,0.4009,4295.2,4295.1,2.33223449]
[1757010552282,0.0154,4295.2,4295.1,2.33223449]
[1757010553914,0.001,4295.3,4295.2,2.32818029]
[1757010554074,4.0211,4295.3,4295.2,2.32818029]
[1757010554398,4.3993,4295.3,4295.2,2.32818029]
[1757010555378,4.0211,4295.3,4295.2,2.32818029]
[1757010555888,4.3993,4295.3,4295.1,0.004]